bitfinex/quotes_ETHUSD_20250625
["timestamp","ask_amount","ask_price","bid_price","bid_amount"]
[1750833378873,4.09385328,2442.7,2442.4,0.8012]
[1750833380675,4.09371763,2442.8,2442.4,0.8012]
[1750833381176,4.09355152,2442.9,2442.4,4.89553065]
[1750833381478,10.81255152,2442.9,2442.4,0.8012]
[1750833381646,4.09368917,2442.8,2442.4,0.8012]
[1750833382076,10.81251933,2442.9,2442.4,4.89549618]
[1750833382451,4.09368037,2442.8,2442.4,0.8012]
[1750833388381,4.09386612,2442.7,2442.4,0.8012]
[1750833388695,10.8125547,2442.9,2442.4,0.8012]
[1750833388696,4.09373265,2442.8,2442.4,0.8012]
[1750833392456,10.8125743,2442.9,2442.4,4.89549612]
[1750833394381,12.47767088,2442.9,2442.4,4.89549612]
[1750833397092,8.38409658,2442.9,2442.4,4.89549612]
[1750833397298,6.705,2443.0,2442.6,4.89904063]
[1750833397495,10.79840483,2443.0,2442.6,0.8051]
[1750833398500,4.09351638,2442.9,2442.6,0.8051]
[1750833400391,10.79841498,2443.0,2442.6,0.8051]
[1750833402578,6.705,2443.0,2442.6,4.89897802]
[1750833402782,4.09352147,2442.9,2442.6,0.8051]
[1750833402982,10.7984079,2443.0,2442.6,0.8051]
[1750833404005,13.74436973,2443.0,2442.6,0.8051]
[1750833404202,13.42890604,2443.0,2442.6,0.8051]
[1750833404374,6.705,2443.0,2442.6,4.89906575]
[1750833405308,10.79835394,2443.0,2442.6,0.8051]
[1750833405984,4.09358455,2442.9,2442.6,0.8051]
[1750833407505,4.09367104,2442.8,2442.6,0.8051]
[1750833408107,4.09380553,2442.8,2442.4,0.7987]
[1750833408686,4.093507,2442.9,2442.4,0.7987]
[1750833408885,4.09374998,2442.8,2442.4,0.7987]
[1750833409515,14.09361351,2442.9,2442.4,4.8930289]
[1750833409808,14.09361351,2442.9,2442.4,4.89302445]
[1750833414828,4.09367897,2442.8,2442.4,0.7987]
[1750833415302,14.09358427,2442.9,2442.4,4.89302598]
[1750833416826,10.0,2442.9,2442.5,4.09406415]
[1750833417122,9.525,2443.4,2443.0,0.8101]
[1750833417325,10.0,2443.5,2443.0,4.90342707]
[1750833417525,4.09218564,2443.7,2443.2,0.7807]
[1750833418025,10.79602089,2443.8,2443.2,0.7807]
[1750833418200,6.704,2443.7,2443.3,4.09281405]
[1750833418397,10.0,2443.6,2443.3,4.09281405]
[1750833418601,10.0,2443.6,2443.2,4.87363423]
[1750833418823,10.0,2443.6,2443.2,0.7807]
[1750833419208,4.09264501,2443.5,2443.2,0.7807]
[1750833419722,12.48881834,2443.6,2443.2,0.7807]
[1750833420021,10.0,2443.6,2443.2,0.7807]
[1750833420325,4.09259575,2443.5,2443.2,0.7807]
[1750833421501,14.09235408,2443.6,2443.2,0.7807]
[1750833421895,4.09251476,2443.5,2443.2,0.7807]
[1750833423230,10.0,2443.6,2443.2,0.7807]
[1750833423427,14.09233726,2443.6,2443.2,0.7807]
[1750833424496,4.09250104,2443.5,2443.2,0.7807]
[1750833424699,10.0,2443.6,2443.2,0.7807]
[1750833425027,22.68989317,2443.6,2443.2,0.7807]
[1750833425323,4.09274545,2443.4,2443.2,0.7807]
[1750833425522,4.09274545,2443.4,2442.9,4.09342948]
[1750833425523,4.09288037,2443.3,2442.9,0.798]
[1750833425729,16.83341574,2443.3,2442.7,0.798]
[1750833426029,4.0932563,2443.1,2442.7,0.798]
[1750833426231,4.09332899,2443.0,2442.7,0.798]
[1750833426830,4.0933513,2443.0,2442.7,0.798]
[1750833427429,10.79622338,2443.1,2442.7,0.798]
[1750833427629,6.703,2443.1,2442.7,4.8918171]
[1750833427800,10.79616669,2443.1,2442.7,0.798]
[1750833428931,6.703,2443.1,2442.7,0.798]
[1750833429426,10.79616642,2443.1,2442.7,0.798]
[1750833429633,6.703,2443.1,2442.7,0.798]
[1750833429808,6.703,2443.1,2442.7,4.89179923]
[1750833430131,6.703,2443.1,2442.7,5.79034832]
[1750833430333,6.703,2443.3,2442.9,4.09337151]
[1750833430510,6.703,2443.3,2442.9,4.85997501]
[1750833431329,6.703,2443.3,2443.1,4.85965261]
[1750833431828,10.0,2443.4,2443.1,0.7666]
[1750833432012,10.0,2443.4,2443.1,4.8597546]
[1750833432404,4.0929481,2443.3,2443.1,0.7666]
[1750833432605,4.0929481,2443.3,2442.9,0.7871]
[1750833439036,12.07954109,2443.4,2442.9,0.7871]
[1750833439037,4.09307909,2443.2,2442.9,0.7871]
[1750833439336,4.09293663,2443.3,2442.9,0.7871]
[1750833439541,5.32686518,2443.3,2442.9,0.7871]
[1750833440439,4.09305411,2443.2,2442.9,0.7871]
[1750833441237,10.79505411,2443.2,2442.9,0.7871]
[1750833441828,6.702,2443.2,2442.9,0.7871]
[1750833443451,4.09284507,2443.3,2442.9,0.7871]
[1750833443619,6.702,2443.2,2442.9,4.88059267]
[1750833443940,6.702,2443.4,2443.0,4.09332272]
[1750833444125,6.702,2443.4,2443.1,0.7784]
[1750833445040,4.09300582,2443.2,2442.7,4.09368842]
[1750833445902,10.79473895,2443.4,2442.9,0.8]
[1750833446338,4.09283602,2443.3,2442.9,0.8]
[1750833446637,4.09317011,2443.1,2442.7,0.8]
[1750833446834,4.09302134,2443.2,2442.7,4.89369343]
[1750833447409,5.61318426,2443.3,2442.8,4.09361446]
[1750833447609,4.09289694,2443.3,2442.8,4.09361446]
[1750833447818,4.09289694,2443.3,2442.7,4.89375072]
[1750833448015,4.093075,2443.2,2442.7,4.89375072]
[1750833448207,4.09289182,2443.3,2442.7,4.89375072]
[1750833448404,4.09289182,2443.3,2442.8,4.0936556]
[1750833448812,10.79477437,2443.4,2442.8,4.093663]
[1750833449850,4.09277437,2443.4,2442.8,4.093663]
[1750833450043,11.87241702,2443.6,2442.9,4.09343906]
[1750833450247,10.0,2443.5,2443.0,0.782]
[1750833450419,14.09249743,2443.5,2443.0,4.87525697]
[1750833453447,10.0,2443.5,2443.1,4.09312668]
[1750833454049,10.0,2443.5,2443.0,4.87525157]
[1750833454050,14.09250765,2443.5,2443.0,4.87525157]
[1750833454418,14.09250765,2443.5,2443.0,0.782]
[1750833456355,4.09265872,2443.4,2443.0,0.782]
[1750833456719,10.0,2443.5,2443.0,4.87520677]
[1750833457223,14.0925028,2443.5,2443.0,4.87520677]
[1750833457744,10.0,2443.5,2443.1,4.09315137]
[1750833459565,14.09249185,2443.5,2443.0,4.87525662]
[1750833460051,10.0,2443.5,2443.1,4.09312222]
[1750833460951,10.0,2443.5,2443.2,4.09293202]
[1750833461157,6.701,2443.4,2443.1,4.09309137]
[1750833462047,6.701,2443.4,2443.0,4.87524837]
[1750833462956,6.701,2443.4,2443.1,4.0931412]
[1750833463119,6.701,2443.4,2443.2,4.09297404]
[1750833463349,6.701,2443.4,2443.0,4.87527628]
[1750833463350,6.701,2443.4,2443.0,0.782]
[1750833463653,6.701,2443.4,2443.1,4.09309277]
[1750833463854,6.701,2443.4,2443.0,0.782]
[1750833465070,4.09309324,2443.2,2442.8,0.8259]
[1750833465462,4.09316428,2443.1,2442.6,4.91982379]
[1750833465666,4.0935999,2442.9,2442.3,2.5689]
[1750833465880,4.0935999,2442.9,2442.4,4.09432761]
[1750833466170,10.92680147,2443.0,2442.4,4.09432761]
[1750833466945,10.92680147,2443.0,2442.5,4.0941544]
[1750833467162,13.09880324,2443.0,2442.5,4.0941544]
[1750833467369,13.09883312,2443.0,2442.4,4.09429008]
[1750833467846,13.09883312,2443.0,2442.5,4.09415576]
[1750833468948,9.00541751,2443.0,2442.5,4.09415576]
[1750833469258,9.00541751,2443.0,2442.6,4.09397842]
[1750833469457,6.83341574,2443.0,2442.6,4.09397842]
[1750833470278,0.3155,2443.0,2442.6,4.09397842]
[1750833472085,0.3155,2443.0,2442.7,4.0938157]
[1750833473253,6.51791574,2443.2,2442.7,0.7911]
[1750833473585,10.0,2443.3,2443.0,4.09327471]
[1750833474158,10.0,2443.3,2442.9,4.09343386]
[1750833474358,10.0,2443.3,2442.7,4.8848902]
[1750833474359,0.3155,2443.2,2442.7,0.7911]
[1750833474562,4.09317104,2443.1,2442.4,6.65117761]
[1750833474778,10.79317104,2443.1,2442.4,4.90717761]
[1750833475487,10.79317104,2443.1,2442.5,4.09416581]
[1750833475685,10.7932309,2443.1,2442.5,4.09416581]
[1750833475886,7.93422028,2443.1,2442.4,0.8129]
[1750833476181,7.93422028,2443.1,2442.5,4.09416537]
[1750833476182,0.3155,2442.9,2442.5,4.09416537]
[1750833478551,0.3155,2443.1,2442.4,0.8129]
[1750833478864,1.742,2443.5,2442.8,0.762]
[1750833478865,10.0,2443.5,2442.8,0.762]
[1750833479060,7.78,2443.6,2442.9,1.742]
[1750833479267,0.3155,2443.7,2443.4,4.09256506]
[1750833479268,7.78,2443.7,2443.4,4.09256506]
[1750833479480,10.0,2443.8,2443.4,4.09256506]
[1750833479684,13.06833858,2443.9,2443.4,4.90166506]
[1750833479880,10.0,2443.8,2443.4,4.90166506]
[1750833480085,3.2340039,2443.9,2443.5,4.09248623]
[1750833480254,0.2199059,2443.9,2443.4,4.90173657]
[1750833480459,0.2199059,2443.9,2443.6,4.092194]
[1750833481187,0.2199059,2443.9,2443.7,4.09214634]
[1750833481554,0.2199059,2443.9,2443.4,0.8091]
[1750833481791,0.2199059,2443.9,2443.4,4.90167245]
[1750833482484,0.2199059,2443.9,2443.5,4.09245683]
[1750833482787,0.2199059,2443.9,2443.6,4.09227727]
[1750833483162,0.2199059,2443.9,2443.5,4.09240775]
[1750833483361,0.2199059,2443.9,2443.5,5.16603552]
[1750833483561,0.2199059,2443.9,2443.5,4.09240775]
[1750833484992,0.2199059,2443.9,2443.6,4.09230979]
[1750833486999,0.2199059,2443.9,2443.7,4.85988143]
[1750833487164,0.2199059,2443.9,2443.7,0.7678]
[1750833487783,0.2199059,2443.9,2443.8,4.09198788]
[1750833488193,0.2199059,2443.9,2443.7,4.85988944]
[1750833488395,0.2199059,2443.9,2443.7,5.75510498]
[1750833489487,0.2199059,2443.9,2443.7,1.66301554]
[1750833489871,0.2199059,2443.9,2443.7,5.75515806]
[1750833490491,0.2199059,2443.9,2443.8,4.09198788]
[1750833490903,0.2199059,2443.9,2443.7,5.75509469]
[1750833491089,0.2199059,2443.9,2443.8,0.57550947]
[1750833491801,0.2199059,2443.9,2443.8,4.66749735]
[1750833493607,0.2199059,2443.9,2443.6,1.742]
[1750833493980,0.2199059,2443.9,2443.8,4.09198788]
[1750833494813,0.2199059,2443.9,2443.7,4.09206979]
[1750833496401,0.2199059,2443.9,2443.8,4.09198788]
[1750833496810,0.2199059,2443.9,2443.7,4.09209006]
[1750833497007,0.2199059,2443.9,2443.8,4.09198788]
[1750833497676,0.2199059,2443.9,2443.7,5.16601956]
[1750833497876,0.2199059,2443.9,2443.7,1.07391622]
[1750833498279,0.2199059,2443.9,2443.6,5.83323784]
[1750833498280,0.2199059,2443.9,2443.5,0.8128]
[1750833498484,0.2199059,2443.9,2443.3,0.7773]
[1750833498782,0.2199059,2443.9,2443.4,4.09255969]
[1750833498994,4.31172871,2443.9,2443.4,4.09255969]
[1750833499198,4.09198788,2443.8,2443.3,0.7773]
[1750833499397,4.09198788,2443.8,2443.3,4.87011376]
[1750833500194,0.2199059,2443.9,2443.4,4.0926304]
[1750833500595,0.2199059,2443.9,2443.5,4.09240739]
[1750833500806,4.31175054,2443.9,2443.4,4.0926394]
[1750833501324,4.31175054,2443.9,2443.2,5.83393357]
[1750833501325,4.09202528,2443.8,2443.2,5.83394069]
[1750833501624,4.09202528,2443.8,2443.3,4.09279439]
[1750833502000,4.31174883,2443.9,2443.2,5.83393164]
[1750833502202,4.0921107,2443.8,2443.2,5.83393164]
[1750833502497,4.0921107,2443.8,2443.2,7.57735121]
[1750833502691,4.0921107,2443.8,2443.3,4.09281486]
[1750833504122,4.31180605,2443.9,2443.4,4.09265431]
[1750833504294,0.2199059,2443.9,2443.4,4.09265431]
[1750833504489,0.2199059,2443.9,2443.5,4.09242835]
[1750833504694,0.2199059,2443.9,2443.5,4.86442835]
[1750833505296,0.2199059,2443.9,2443.5,5.76013661]
[1750833505534,0.2199059,2443.9,2443.5,5.76017397]
[1750833505701,0.2199059,2443.9,2443.6,4.09225812]
[1750833507709,4.31174619,2443.9,2443.2,7.57727044]
[1750833508225,4.4075733,2443.8,2443.2,7.57727044]
[1750833508400,4.4075733,2443.8,2443.3,1.91346242]
[1750833509130,4.4075733,2443.8,2443.3,6.00624771]
[1750833509304,0.3155,2443.8,2443.4,4.09265564]
[1750833509837,0.3155,2443.8,2443.3,6.00621341]
[1750833510231,4.40750651,2443.8,2443.3,6.00621341]
[1750833511132,0.3155,2443.8,2443.3,6.00621341]
[1750833511303,0.3155,2443.8,2443.4,4.09264778]
[1750833512922,4.40750186,2443.8,2443.3,6.00620426]
[1750833513126,0.3155,2443.8,2443.3,6.00623744]
[1750833513297,4.40759532,2443.8,2443.3,6.00615786]
[1750833513834,0.3155,2443.8,2443.3,6.00615786]
[1750833514133,0.3155,2443.8,2443.4,5.10256541]
[1750833515228,4.407502,2443.8,2443.4,1.00991373]
[1750833515441,4.09217381,2443.7,2443.2,4.09295223]
[1750833515815,4.40756839,2443.8,2443.3,4.09278783]
[1750833516406,4.40756839,2443.8,2443.1,9.2042]
[1750833516407,0.3155,2443.8,2443.1,9.2042]
[1750833516937,4.09225729,2443.7,2443.1,13.29721586]
[1750833517140,4.09225729,2443.7,2443.2,1.73905149]
[1750833517636,4.09225729,2443.7,2443.2,5.83204079]
[1750833518515,0.3155,2443.8,2443.3,4.09282315]
[1750833518516,4.40755962,2443.8,2443.3,4.09282315]
[1750833518908,0.3155,2443.8,2443.3,4.09282315]
[1750833519671,4.09220012,2443.7,2443.2,5.83192204]
[1750833520207,4.4075677,2443.8,2443.3,4.09277145]
[1750833520711,4.09218651,2443.7,2443.2,5.83195775]
[1750833524456,4.40756172,2443.8,2443.2,5.83195775]
[1750833527962,4.40756172,2443.8,2443.3,4.09277363]
[1750833527963,0.3155,2443.8,2443.3,4.09277363]
[1750833528130,0.3155,2443.8,2443.4,4.09254738]
[1750833528331,10.2199059,2443.9,2443.5,4.09246246]
[1750833528658,10.2199059,2443.9,2443.5,4.91886246]
[1750833530161,0.2199059,2443.9,2443.5,4.91888112]
[1750833530333,0.2199059,2443.9,2443.6,4.09228194]
[1750833530533,0.2199059,2443.9,2443.5,9.2594]
[1750833530534,0.2199059,2443.9,2443.8,4.09198788]
[1750833531626,0.2199059,2443.9,2443.7,5.42730612]
[1750833532272,0.2199059,2443.9,2443.8,4.09198788]
[1750833533058,0.2199059,2443.9,2443.7,5.42725463]
[1750833535256,0.2199059,2443.9,2443.8,4.09198788]
[1750833535559,0.2199059,2443.9,2443.8,5.85821213]
[1750833538471,0.2199059,2443.9,2443.8,1.76622425]
[1750833542203,0.2199059,2443.9,2443.8,0.95192425]
[1750833542474,0.2199059,2443.9,2443.8,5.04391213]
[1750833543875,0.2199059,2443.9,2443.8,0.95192425]
[1750833544081,0.2199059,2443.9,2443.8,4.09198788]
[1750833547978,0.2199059,2443.9,2443.7,10.78206883]
[1750833548583,0.2199059,2443.9,2443.7,4.09206883]
[1750833548789,0.2199059,2443.9,2443.8,6.69]
[1750833548969,0.2199059,2443.9,2443.5,4.09243601]
[1750833549170,0.2199059,2443.9,2443.6,8.428]
[1750833550086,4.31181186,2443.9,2443.4,4.09258093]
[1750833550306,4.09215533,2443.7,2443.1,4.92295605]
[1750833550590,0.3155,2443.7,2443.1,10.78215605]
[1750833550769,0.3155,2443.7,2443.1,12.52650072]
[1750833550969,4.09234123,2443.6,2443.1,12.52650072]
[1750833551386,4.40772512,2443.7,2443.1,12.52650072]
[1750833551597,4.40772512,2443.7,2443.2,4.09298637]
[1750833551761,0.3155,2443.7,2443.1,10.78215322]
[1750833551961,0.3155,2443.7,2443.2,4.09286817]
[1750833552401,0.3155,2443.7,2443.2,4.09299279]
[1750833552573,0.3155,2443.7,2443.4,4.09265477]
[1750833553263,0.3155,2443.7,2443.3,4.09274118]
[1750833553468,0.3155,2443.7,2443.3,5.79445411]
[1750833554505,0.3155,2443.7,2443.2,4.09291547]
[1750833555116,0.3155,2443.7,2443.3,4.09281049]
[1750833556192,10.5354059,2443.9,2443.3,4.09282527]
[1750833556401,10.5354059,2443.9,2443.4,4.09257209]
[1750833556878,0.2199059,2443.9,2443.5,10.78137263]
[1750833557080,4.31180717,2443.9,2443.4,4.09262478]
[1750833557403,0.3155,2443.8,2443.4,10.78162478]
[1750833558580,0.3155,2443.8,2443.4,6.689]
[1750833558802,0.3155,2443.8,2443.4,10.78164898]
[1750833559187,4.40753204,2443.8,2443.4,6.689]
[1750833559384,0.3155,2443.8,2443.4,6.689]
[1750833559806,0.3155,2443.8,2443.4,10.78165527]
[1750833561414,0.3155,2443.8,2443.1,2.15319532]
[1750833561590,4.09224241,2443.7,2443.2,12.51990664]
[1750833561909,4.09224241,2443.7,2443.2,10.78190664]
[1750833564719,4.09224241,2443.7,2443.2,4.09290664]
[1750833564914,4.40751755,2443.8,2443.2,6.689]
[1750833565203,4.09225554,2443.7,2443.2,6.689]
[1750833565704,4.0924367,2443.6,2443.0,4.09326029]
[1750833565907,0.3155,2443.5,2443.1,6.688]
[1750833566107,0.3155,2443.5,2443.1,4.09304591]
[1750833568106,0.3155,2443.5,2443.1,4.09316032]
[1750833568301,0.3155,2443.5,2443.0,10.78126847]
[1750833568477,0.3155,2443.5,2443.1,1.33315685]
[1750833568681,0.3155,2443.5,2443.1,4.09314444]
[1750833570614,0.3155,2443.5,2443.0,10.78124128]
[1750833570818,0.3155,2443.5,2443.1,4.09316032]
[1750833571186,0.3155,2443.5,2443.2,4.09287265]
[1750833571399,14.09212977,2443.8,2443.3,4.09274489]
[1750833571596,0.5354059,2443.9,2443.4,6.688]
[1750833571899,0.2199059,2443.9,2443.8,4.09198788]
[1750833576012,0.2199059,2443.9,2443.7,4.09207784]
[1750833577027,0.2199059,2443.9,2443.8,4.09198788]
[1750833577406,0.2199059,2443.9,2443.8,4.91041712]
[1750833580117,0.2199059,2443.9,2443.8,0.81842924]
[1750833581730,0.2199059,2443.9,2443.8,4.91041712]
[1750833586360,0.2199059,2443.9,2443.8,12.38281712]
[1750833586562,0.2199059,2443.9,2443.8,12.93281712]
[1750833586854,0.2199059,2443.9,2443.8,12.38281712]
[1750833587453,0.2199059,2443.9,2443.8,14.11781712]
[1750833593145,0.2199059,2443.9,2443.8,5.69681712]
[1750833593346,0.2199059,2443.9,2443.8,14.11781712]
[1750833595060,0.2199059,2443.9,2443.8,14.66781712]
[1750833600271,0.3155,2444.7,2444.6,4.09064877]
[1750833600559,0.3155,2444.7,2443.9,1.8759966]
[1750833600560,0.3155,2444.7,2444.0,0.807]
[1750833600764,0.3155,2444.7,2444.2,5.82521692]
[1750833600948,0.3155,2444.7,2444.3,4.09112217]
[1750833601635,0.3155,2444.7,2444.3,6.683]
[1750833601850,4.40599934,2444.7,2444.3,6.683]
[1750833602061,0.3155,2444.7,2444.3,6.683]
[1750833602453,4.40599954,2444.7,2444.3,6.683]
[1750833602827,4.09088324,2444.5,2444.0,4.09154157]
[1750833603033,0.3155,2444.4,2444.1,6.682]
[1750833603230,0.3155,2444.4,2444.1,10.77345947]
[1750833604343,0.3155,2444.4,2444.1,6.682]
[1750833604539,0.3155,2444.4,2443.9,5.96776883]
[1750833604768,4.40650885,2444.4,2444.0,6.682]
[1750833605058,0.3155,2444.2,2443.9,6.682]
[1750833605437,0.3155,2444.2,2443.7,4.09211511]
[1750833605644,0.3155,2444.2,2443.8,8.416]
[1750833605864,0.3155,2444.2,2443.9,4.0918006]
[1750833606034,0.3155,2444.2,2443.8,12.50791846]
[1750833606235,0.3155,2444.2,2443.8,10.77397879]
[1750833606964,0.3155,2444.2,2443.8,6.682]
[1750833607280,0.3155,2444.2,2443.8,10.77398559]
[1750833607464,0.3155,2444.2,2443.8,6.682]
[1750833607765,0.3155,2444.2,2443.8,10.77385165]
[1750833608765,0.3155,2444.2,2443.9,4.09180884]
[1750833609562,0.3155,2444.2,2443.8,10.77392321]
[1750833609972,0.3155,2444.2,2443.9,4.09182045]
[1750833610869,0.3155,2444.2,2444.0,4.09164007]
[1750833611666,0.3155,2444.2,2443.9,4.09175124]
[1750833611868,0.3155,2444.2,2443.8,6.682]
[1750833612041,0.3155,2444.2,2443.9,4.0917883]
[1750833612662,0.3155,2444.2,2444.0,4.09165135]
[1750833615969,0.3155,2444.4,2444.0,4.09165135]
[1750833616172,1.75613497,2444.4,2444.0,4.09165135]
[1750833616547,0.3155,2444.4,2443.8,6.682]
[1750833616751,10.0,2444.5,2444.2,4.09123869]
[1750833618464,14.40618951,2444.6,2444.1,4.0914133]
[1750833618783,10.3155,2444.6,2444.1,4.0914133]
[1750833618974,10.3155,2444.6,2444.2,4.09130929]
[1750833619285,13.00674379,2444.6,2444.1,4.0914449]
[1750833620387,17.09748751,2444.6,2444.1,4.0914449]
[1750833620866,13.00674379,2444.6,2444.1,4.0914449]
[1750833621756,13.00674379,2444.6,2444.2,4.09131494]
[1750833624059,13.00674379,2444.6,2444.1,5.8254028]
[1750833624060,17.09743302,2444.6,2444.1,5.8254028]
[1750833624491,4.40618923,2444.6,2444.1,5.8254028]
[1750833627094,0.3155,2444.6,2444.2,4.09131024]
[1750833627493,4.40615178,2444.6,2444.1,5.82541914]
[1750833628398,0.3155,2444.6,2444.2,4.09130819]
[1750833629396,0.3155,2444.6,2444.1,5.82540364]
[1750833631098,2.16513629,2444.6,2444.1,5.82540364]
[1750833631400,6.25582236,2444.6,2444.1,5.82540364]
[1750833632327,2.16513629,2444.6,2444.1,5.82540364]
[1750833634503,2.16513629,2444.6,2444.1,4.09140364]
[1750833634706,2.16513629,2444.6,2444.2,4.09124886]
[1750833636206,0.3155,2444.6,2444.2,4.09124886]
[1750833636504,0.3155,2444.6,2444.3,4.09112709]
[1750833637285,10.3155,2444.9,2444.5,4.09081611]
[1750833637473,0.3155,2444.9,2444.5,4.09081611]
[1750833637971,4.08944952,2445.4,2444.8,4.09031413]
[1750833638199,4.40504522,2445.3,2444.5,9.70417172]
[1750833638381,4.40504522,2445.3,2444.8,4.0903081]
[1750833638586,10.0,2445.2,2444.8,4.0903081]
[1750833639094,10.3155,2445.3,2444.8,4.0903081]
[1750833639292,10.3155,2445.3,2444.9,4.09005599]
[1750833639496,0.3155,2445.3,2444.9,4.09005599]
[1750833640006,0.3155,2445.3,2444.8,4.09023017]
[1750833640185,4.40501788,2445.3,2444.8,4.90829659]
[1750833640377,4.40501788,2445.3,2444.8,0.81806642]
[1750833640900,4.08969339,2445.2,2444.8,0.81806642]
[1750833641107,4.40539604,2445.1,2444.5,12.49873214]
[1750833641310,14.457,2445.6,2444.9,4.0901354]
[1750833641311,4.08908624,2445.6,2444.9,4.0901354]
[1750833641491,14.40478729,2445.5,2444.9,4.49914894]
[1750833641692,10.0,2445.4,2444.9,4.49914894]
[1750833642001,0.3155,2445.0,2444.5,4.09069506]
[1750833642185,4.4055857,2445.0,2444.5,1.731]
[1750833642605,4.4055857,2445.0,2444.3,4.09101138]
[1750833642606,0.3155,2444.8,2444.3,4.09107935]
[1750833642809,0.3155,2444.8,2444.3,5.82207935]
[1750833643109,4.40584501,2444.8,2444.2,4.09127028]
[1750833643276,0.3155,2444.7,2443.9,0.8308]
[1750833643481,4.09090196,2444.5,2444.0,1.731]
[1750833643680,0.3155,2444.4,2444.1,4.09137424]
[1750833643921,0.3155,2444.4,2444.0,4.09156818]
[1750833644107,0.3155,2444.4,2443.8,4.09194815]
[1750833644108,4.40653265,2444.4,2443.8,4.091892]
[1750833644297,4.40653265,2444.4,2443.8,5.75100041]
[1750833644608,4.40653265,2444.4,2443.9,4.09181942]
[1750833645509,0.3155,2444.4,2443.9,4.09181942]
[1750833646209,0.3155,2444.4,2443.7,1.731]
[1750833646387,4.09115084,2444.3,2443.8,4.09197466]
[1750833646588,4.0914914,2444.1,2443.4,4.09261984]
[1750833646910,4.40728093,2444.0,2443.3,12.90908084]
[1750833647112,4.40728093,2444.0,2443.4,4.09255219]
[1750833647279,4.40728093,2444.0,2443.5,4.09247255]
[1750833647478,0.3155,2444.0,2443.5,2.47075534]
[1750833647684,4.40671229,2444.3,2443.6,4.0923228]
[1750833647914,4.40671229,2444.3,2443.7,4.0919988]
[1750833649818,4.40671229,2444.3,2443.8,4.09198333]
[1750833651013,0.3155,2444.3,2443.8,4.09198333]
[1750833651216,10.3155,2444.3,2443.9,4.09180814]
[1750833652721,4.09132504,2444.2,2443.7,4.09208793]
[1750833653406,14.40673236,2444.3,2443.8,4.09198508]
[1750833654621,10.3155,2444.3,2443.8,4.09198788]
[1750833654829,10.3155,2444.3,2443.8,4.91040141]
[1750833655629,14.40665186,2444.3,2443.8,4.91040141]
[1750833655993,14.40665186,2444.3,2443.8,0.81841353]
[1750833657724,14.40665186,2444.3,2443.8,4.91039055]
[1750833658029,14.40665186,2444.3,2443.8,0.81841353]
[1750833659329,4.09133678,2444.2,2443.8,0.81841353]
[1750833659929,14.4066725,2444.3,2443.8,0.81841353]
[1750833660132,4.09139239,2444.2,2443.7,4.09215159]
[1750833660826,10.3155,2444.3,2443.5,6.56319988]
[1750833660827,0.3155,2444.0,2443.5,4.20275534]
[1750833661003,0.3155,2444.0,2443.5,8.29523205]
[1750833661204,0.3155,2444.0,2443.6,5.5894548]
[1750833662634,0.3155,2444.0,2443.7,4.09213477]
[1750833662831,14.09123843,2444.3,2443.7,4.91855444]
[1750833664030,4.09133996,2444.2,2443.7,0.8265]
[1750833664206,0.3155,2444.1,2443.6,5.58946103]
[1750833664529,0.3155,2444.1,2443.7,1.21976928]
[1750833664730,0.3155,2444.1,2443.3,1.19507449]
[1750833664932,6.676,2444.2,2443.3,1.19507449]
[1750833664933,0.3155,2443.8,2443.3,1.19507449]
[1750833665136,0.3155,2443.8,2443.5,4.09249028]
[1750833665805,0.3155,2443.8,2443.4,4.0925855]
[1750833666845,0.3155,2443.8,2443.3,4.50201356]
[1750833667059,4.09215533,2443.7,2443.4,2.52709466]
[1750833667370,4.09215533,2443.7,2443.1,12.49906664]
[1750833667512,4.09215533,2443.7,2443.2,4.09296223]
[1750833667858,0.3155,2443.8,2443.3,4.09280943]
[1750833668063,4.40749259,2443.8,2443.3,4.09280943]
[1750833668345,4.09217331,2443.7,2443.2,4.09297001]
[1750833668550,4.09217331,2443.7,2443.3,0.582297]
[1750833668725,4.40754239,2443.8,2443.3,4.67510911]
[1750833668914,0.3155,2443.8,2443.3,4.67510911]
[1750833669114,0.3155,2443.8,2443.5,4.09249028]
[1750833669316,4.0916723,2444.0,2443.5,4.09249028]
[1750833670255,4.40702424,2444.1,2443.6,4.09232081]
[1750833671044,4.40702424,2444.1,2443.5,5.04810251]
[1750833671544,4.09165333,2444.0,2443.5,5.04810251]
[1750833672330,4.40707302,2444.1,2443.6,4.09226407]
[1750833672642,14.40707302,2444.1,2443.6,4.09226407]
[1750833673149,14.40707302,2444.1,2443.5,5.04810677]
[1750833673315,14.40707302,2444.1,2443.6,0.99301065]
[1750833673749,4.09169521,2444.0,2443.6,0.99301065]
[1750833673949,4.09169521,2444.0,2443.4,4.88198277]
[1750833675047,4.09169521,2444.0,2443.5,4.09247811]
[1750833675429,14.40707302,2444.1,2443.4,4.88197168]
[1750833675430,4.09185884,2443.9,2443.4,4.88197168]
[1750833676357,14.40704315,2444.1,2443.6,4.09226569]
[1750833677061,14.40704315,2444.1,2443.5,4.09241838]
[1750833677262,14.40704315,2444.1,2443.6,0.89744137]
[1750833677467,14.40704315,2444.1,2443.5,4.09241838]
[1750833678061,14.40704315,2444.1,2443.6,4.09231932]
[1750833679331,14.40704315,2444.1,2443.5,4.09240639]
[1750833679742,4.09167378,2444.0,2443.4,4.88196902]
[1750833680062,4.09167378,2444.0,2443.5,4.09245678]
[1750833680262,4.09167378,2444.0,2443.5,5.04812906]
[1750833681037,4.09167378,2444.0,2443.5,0.95567228]
[1750833682072,4.40749023,2443.8,2443.3,4.67503254]
[1750833682945,0.3155,2443.8,2443.3,4.67503254]
[1750833683956,0.3155,2443.8,2443.4,4.09257994]
[1750833689276,0.3155,2443.8,2443.3,4.6750004]
[1750833689474,0.3155,2443.8,2443.3,0.582297]
[1750833689671,4.09223548,2443.7,2443.2,4.09288948]
[1750833690786,4.09223548,2443.7,2443.1,4.09307682]
[1750833691285,4.09248027,2443.6,2443.0,1.73]
[1750833691484,4.40807774,2443.5,2442.8,5.82155053]
[1750833691685,4.40807774,2443.5,2443.0,4.0933248]
[1750833692292,0.3155,2443.5,2443.1,4.09313738]
[1750833693681,0.3155,2443.5,2443.0,4.09324705]
[1750833694186,0.3155,2443.5,2443.0,4.09332787]
[1750833694483,0.3155,2443.5,2443.1,4.09304348]
[1750833695081,0.3155,2443.5,2443.0,4.09325626]
[1750833695268,0.3155,2443.5,2443.0,7.09336949]
[1750833695464,4.40803424,2443.5,2443.0,3.00011323]
[1750833695778,4.40803424,2443.5,2443.0,7.09341984]